Cogmind - Beta 13 @@@ ROGUE MODE // 2024.04.04 @ 15:53:46 Player: Niko Result: Destroyed by G-47 Trooper with Particle Gun Performance ------------- Evolutions (2) 1000 Regions Visited (6) 1200 Robots Destroyed (41) 205 Value Destroyed (1269) 1269 Prototype IDs (1) 20 Alien Tech Used (0) 0 Bonus (500) 500 TOTAL SCORE: 4194 Bonus ------- Pacifist 200 Aligned with FarCom 300 Cogmind --------- Core Integrity 0/550 Matter 300/300 Energy 100/100 System Corruption 13% Temperature Cool (18) Movement Core (350) Ox6 Location -8/Materials Parts ------- > --- POWER (2) -------- (None) > --- PROPULSION (2) --- (None) > --- UTILITY (4) ------ Improved Heat Sink Large Storage Unit > --- WEAPON (3) ------- (None) > --- INVENTORY (15) --- High-capacity Matter Pod (200) Terrain Scan Processor Advanced Targeting Computer Advanced Targeting Computer Cloak of Protection Medium Reactive Plating Medium Reactive Plating Medium Reactive Plating Hacking Suite Hacking Suite Hacking Suite Peak State ------------ > --- POWER ------------ Light Nuclear Core > --- PROPULSION ------- Carbon-fiber Leg Carbon-fiber Leg > --- UTILITY ---------- Large Storage Unit Advanced Targeting Computer Advanced Targeting Computer Cloak of Protection > --- WEAPON ----------- Heavy Particle Cannon Heavy Ion Cannon Gauss Rifle > --- INVENTORY -------- Light Nuclear Core Carbon-fiber Leg Titanium Leg Improved Heat Sink High-capacity Matter Pod Terrain Scanner Terrain Scan Processor Advanced Targeting Computer Advanced Targeting Computer Hacking Suite Hacking Suite Hacking Suite Field Laser [Rating: 38] Favorites ----------- Power Light Nuclear Core Engine Light Ion Engine Power Core Light Nuclear Core Propulsion Carbon-fiber Leg Leg Carbon-fiber Leg Utility Advanced Targeting Computer Device Improved Heat Sink Storage Large Storage Unit Processor Advanced Targeting Computer Protection Medium Reactive Plating Weapon Heavy Ion Cannon Energy Gun Field Laser Energy Cannon Heavy Ion Cannon Ballistic Gun Gauss Rifle Launcher Rocket Launcher Special Weapon Welding Torch Build | -11 -10 -9 -9 -9 -8 -8 ------- Run | Yrd Mat Mat Min Exi Min Mat Slots Evolved 4 | . . 2 . . . 2 Power 1 | . . . . . . 1 Propulsion . | . . . . . . . Utility 2 | . . 1 . . . 1 Weapon 1 | . . 1 . . . . Parts Attached 40 | 7 . 8 4 . 4 17 Power 5 | 1 . 1 . . 2 1 Engine 1 | 1 . . . . . . Core 4 | . . 1 . . 2 1 Reactor . | . . . . . . . Propulsion 9 | 2 . 2 1 . 2 2 Treads . | . . . . . . . Leg 9 | 2 . 2 1 . 2 2 Wheel . | . . . . . . . Hover . | . . . . . . . Flight . | . . . . . . . Utility 11 | 1 . 3 . . . 7 Device 4 | . . . . . . 4 Storage 2 | 1 . 1 . . . . Processor 2 | . . 2 . . . . Hackware . | . . . . . . . Protection 3 | . . . . . . 3 Artifact . | . . . . . . . Weapon 15 | 3 . 2 3 . . 7 Energy Gun 7 | 2 . 1 . . . 4 Energy Cannon 3 | . . . 1 . . 2 Ballistic Gun 3 | 1 . 1 1 . . . Ballistic Cannon . | . . . . . . . Launcher 1 | . . . 1 . . . Special Weapon 1 | . . . . . . 1 Impact Weapon . | . . . . . . . Slashing Weapon . | . . . . . . . Piercing Weapon . | . . . . . . . Special Melee Weapon . | . . . . . . . Unidentified Prototypes 1 | . . . . . . 1 Corrupted Parts 1 | . . . . . . 1 System Corruption 3 | . . . . . . 3 Parts Lost 20 | . . . . . 4 16 Power 4 | . . . . . 2 2 Propulsion 4 | . . . . . 1 3 Utility 3 | . . . . . . 3 Weapon 9 | . . . . . 1 8 Highest Loss Streak 8 | . . . . . 3 8 To Critical Strikes . | . . . . . . . Average Slot Usage (%) 94 | . 85 90 99 100 99 79 Core 10 | . . 3 11 11 10 11 Leg 20 | . 28 20 21 22 21 15 Device 1 | . . . . . . 7 Storage 10 | . 14 11 11 11 11 9 Processor 18 | . . 18 22 22 22 10 Protection 1 | . . . . . . 5 Energy Gun 5 | . 14 9 8 . . 11 Energy Cannon 7 | . . . 2 11 11 8 Ballistic Gun 11 | . 14 18 18 11 11 . Launcher 6 | . . . 3 11 11 . Naked Turns . | . . . . . . . Heaviest Build 66 | 11 11 33 41 41 41 66 Greatest Support 30 | 20 20 30 30 30 30 30 Greatest Overweight (x) 8 | . . 3 2 1 1 8 Average Overweight (x) . | . . . 1 1 1 1 Largest Inventory Capacity 15 | 8 8 15 15 15 15 15 Average Capacity 14 | 7 8 10 15 15 15 15 Most Carried 15 | 5 . 15 15 15 15 15 Average Carried 12 | . . 7 14 14 13 12 Final Capacity 15 | 8 8 15 15 15 15 15 Final Carried 15 | . . 15 15 15 15 11 Class Distribution -------------------- 50% | Gunner 20% | Bomber 19% | Mutant 10% | Skirmisher Dominant Class ---------------- Mutant | -10/Materials Gunner | -9/Materials Gunner | -9/Mines Gunner | -9/Exiles Bomber | -8/Mines Skirmisher | -8/Materials Resources | -11 -10 -9 -9 -9 -8 -8 ----------- Run | Yrd Mat Mat Min Exi Min Mat Matter Collected 1094 | 248 22 48 400 . 209 167 Remotely . | . . . . . . . Salvage Created 1492 | . . 48 304 . 436 704 Parts 77 | . . 3 23 . 22 29 Haulers Intercepted . | . . . . . . . Recyclers Shooed . | . . . . . . . Parts Field Recycled . | . . . . . . . Retrieved Matter . | . . . . . . . Parts Self-Destructed . | . . . . . . . Prevented . | . . . . . . . Kills | -11 -10 -9 -9 -9 -8 -8 ------- Run | Yrd Mat Mat Min Exi Min Mat Combat Hostiles Destroyed 35 | . . 1 11 . 13 10 Guns 19 | . . 1 11 . 2 5 Cannons 8 | . . . . . 5 3 AOE 6 | . . . . . 6 . Classes Destroyed 10 | . . 1 3 . 4 2 Worker 1 | . . . . . 1 . Builder 2 | . . . 1 . . 1 Tunneler 2 | . . . . . 1 1 Recycler 1 | . . . . . . 1 Swarmer 10 | . . . 7 . 3 . Grunt 14 | . . . 4 . 7 3 Brawler 4 | . . . . . 2 2 Duelist 2 | . . . . . . 2 Sentry 3 | . . 1 . . . 2 Hunter 2 | . . . . . 1 1 Best Kill Streak 5 | . . 1 4 . 5 4 Combat Bots Only 4 | . . 1 4 . 3 3 Max Kills in Single Turn 3 | . . 1 2 . 3 1 Gunslinging 1 | . . . 1 . . . Exploded 3 | . . . . . 3 . Melee . | . . . . . . . Uniques/NPCs Destroyed . | . . . . . . . Combat | -11 -10 -9 -9 -9 -8 -8 -------- Run | Yrd Mat Mat Min Exi Min Mat Hostile Shots Fired 226 | . . 2 34 . 50 140 Missed 52 | . . . 11 . 12 29 Damage Taken 2760 | . . 32 259 . 618 1851 Core 684 | . . . 9 . 120 555 Absorbed by Shields . | . . . . . . . Ignored by Resistances 60 | . . . . . . 60 Regen/Repaired (Parts) 37 | . . . . . . 37 Core Remaining (%) 89 | 100 100 . . . 67 . Volleys Fired 97 | . . 2 17 . 32 46 Largest 3 | . . 3 3 . 3 3 Hottest 203 | . . 83 106 . 126 203 Shots Fired 197 | . . 6 51 . 52 88 Gun 135 | . . 6 51 . 25 53 Cannon 51 | . . . . . 16 35 Launcher 11 | . . . . . 11 . Special . | . . . . . . . Kinetic 63 | . . 4 34 . 25 . Thermal 97 | . . 2 17 . 16 62 Explosive 11 | . . . . . 11 . Electromagnetic 26 | . . . . . . 26 Robot Hit Streak 21 | . . 4 16 . 21 11 Robot Miss Streak 3 | . . 1 2 . 2 3 Penetration Max . | . . . . . . . Secondary Targets 2 | . . . 1 . . 1 Max Gunslinging Chain 1 | . . . 1 . . 1 Shots Hit Robots 130 | . . 4 29 . 36 61 Core Hits 64 | . . 2 14 . 26 22 Critical Kills 2 | . . . 2 . . . Critical Parts Destroyed 3 | . . . 1 . 2 . Critical Strikes 8 | . . . 3 . 2 3 Burn 1 | . . . . . . 1 Destroy 5 | . . . 3 . 2 . Corrupt 2 | . . . . . . 2 Melee Attacks . | . . . . . . . Impact . | . . . . . . . Slashing . | . . . . . . . Piercing . | . . . . . . . Sneak Attacks . | . . . . . . . Combat Hostiles . | . . . . . . . Follow-up Attacks . | . . . . . . . Damage Inflicted 3067 | . . 55 459 . 1228 1325 Guns 1522 | . . 55 448 . 335 684 Cannons 922 | . . . . . 320 602 Explosions 573 | . . . . . 573 . Melee . | . . . . . . . Ramming 50 | . . . 11 . . 39 Kinetic 611 | . . 34 242 . 335 . Thermal 1481 | . . 21 206 . 320 934 Explosive 573 | . . . . . 573 . Electromagnetic 352 | . . . . . . 352 Impact . | . . . . . . . Slashing . | . . . . . . . Piercing . | . . . . . . . Highest Corruption 13 | . . . . . . 13 Average Corruption 7 | . . . . . . 7 Corruption Purged . | . . . . . . . Corruption Blocked . | . . . . . . . Effects 17 | . . . . . . 17 Message Errors 5 | . . . . . . 5 Matter Fused 1 | . . . . . . 1 Energy Discharges 4 | . . . . . . 4 Parts Rejected 2 | . . . . . . 2 Parts Fused 1 | . . . . . . 1 Data Loss (minor) 1 | . . . . . . 1 Data Loss (major) 3 | . . . . . . 3 Overload Shots . | . . . . . . . Overflow Damage 16 | . . . . . 16 . Projectiles 16 | . . . . . 16 . Explosions . | . . . . . . . Melee . | . . . . . . . Knockbacks 1 | . . . . . . 1 Impact 1 | . . . . . . 1 Kinetic . | . . . . . . . Secondary . | . . . . . . . Self-Inflicted Damage 32 | . . . . . 32 . Shots 1 | . . . . . 1 . Rammed 2 | . . . . . . 2 Targets Rammed 27 | . . . 1 . . 26 Kicked 25 | . . . 1 . . 24 Crushed . | . . . . . . . Highest Temperature 520 | . . 21 231 . 357 520 Average Temperature 158 | . . 12 86 . 128 223 Received Heat Transfer 1287 | . . 9 63 . 297 918 Effects 8 | . . . . . . 8 Shutdowns 3 | . . . . . . 3 Energy Bleed 3 | . . . . . . 3 Short Circuit 1 | . . . . . . 1 Damage (minor) 1 | . . . . . . 1 Siege Activations . | . . . . . . . Robots Corrupted 2 | . . . . . . 2 Combat Hostiles 2 | . . . . . . 2 Parts Fried 5 | . . . . . . 5 Impact Corruptions . | . . . . . . . Robots Melted . | . . . . . . . Combat Hostiles . | . . . . . . . Parts Melted 3 | . . . 1 . . 2 Heat Transferred 2603 | . . 50 444 . 444 1665 Parts Sabotaged . | . . . . . . . Parts Stolen . | . . . . . . . Parts Stripped . | . . . . . . . Power Chain Reactions . | . . . . . . . Alert | -11 -10 -9 -9 -9 -8 -8 ------- Run | Yrd Mat Mat Min Exi Min Mat Peak Influence 254 | . . 45 157 . 254 218 Initial 17 | . . . 17 . . . Average 77 | . . 29 100 . 93 75 Maximum Alert Level 1 | . . . . . 1 1 Low Security (%) 95 | 100 100 100 100 . 93 88 Level 1 4 | . . . . . 6 11 Level 2 . | . . . . . . . Level 3 . | . . . . . . . Level 4 . | . . . . . . . Level 5 . | . . . . . . . High Security . | . . . . . . . Max Security . | . . . . . . . Squads Dispatched 5 | . . . . . . 5 Investigation 1 | . . . . . . 1 Extermination . | . . . . . . . Reinforcement 1 | . . . . . . 1 Assault . | . . . . . . . Garrison 3 | . . . . . . 3 Intercept . | . . . . . . . Searches Triggered . | . . . . . . . Construction Impeded . | . . . . . . . Haulers Reinforced . | . . . . . . . Active Scanning Responses . | . . . . . . . Cargo Convoy Interrupts . | . . . . . . . Stealth | -11 -10 -9 -9 -9 -8 -8 --------- Run | Yrd Mat Mat Min Exi Min Mat Distress Signals . | . . . . . . . Communications Jammed . | . . . . . . . Distress Signals . | . . . . . . . Times Spotted 44 | . . 1 10 . 15 18 Peak Tracking Total 4 | . . 1 4 . 3 4 Tactical Retreats . | . . . . . . . Traps | -11 -10 -9 -9 -9 -8 -8 ------- Run | Yrd Mat Mat Min Exi Min Mat Traps Triggered 1 | . . . 1 . . . Indirectly . | . . . . . . . Trap Hack Attempts . | . . . . . . . Triggered . | . . . . . . . Disarmed . | . . . . . . . Reprogrammed . | . . . . . . . Reused . | . . . . . . . Traps Extracted . | . . . . . . . Installed . | . . . . . . . Triggered . | . . . . . . . Machines | -11 -10 -9 -9 -9 -8 -8 ---------- Run | Yrd Mat Mat Min Exi Min Mat Machines Disabled 2 | . . . . . 1 1 Max in Single Turn 1 | . . . . . 1 1 Machines Repaired . | . . . . . . . Machines Dismantled . | . . . . . . . Machines Sabotaged . | . . . . . . . Overloaded Fab Kills . | . . . . . . . Hacking | -11 -10 -9 -9 -9 -8 -8 --------- Run | Yrd Mat Mat Min Exi Min Mat Machines Accessed 2 | . . . 1 . . 1 Terminals . | . . . . . . . Fabricators . | . . . . . . . Repair Stations 1 | . . . . . . 1 Recycling Units . | . . . . . . . Scanalyzers . | . . . . . . . Garrison Access . | . . . . . . . Total Hacks 7 | . . . 1 . . 6 Successful 4 | . . . 1 . . 3 Failed 3 | . . . . . . 3 Catastrophic . | . . . . . . . Database Lockouts . | . . . . . . . Manual 2 | . . . . 1 . 1 Terminals . | . . . . . . . Fabricators . | . . . . . . . Repair Stations 6 | . . . . . . 6 Recycling Units . | . . . . . . . Scanalyzers . | . . . . . . . Garrison Access . | . . . . . . . Terminal Hacks 1 | . . . 1 . . . Open Door 1 | . . . 1 . . . Fabricator Hacks . | . . . . . . . Repair Station Hacks 3 | . . . . . . 3 Scan Component 2 | . . . . . . 2 Repair 1 | . . . . . . 1 Recycling Unit Hacks . | . . . . . . . Scanalyzer . | . . . . . . . Garrison Access Hacks . | . . . . . . . Unauthorized Hacks . | . . . . . . . Terminals . | . . . . . . . Fabricators . | . . . . . . . Repair Stations . | . . . . . . . Recycling Units . | . . . . . . . Scanalyzers . | . . . . . . . Garrison Access . | . . . . . . . Data Cores Recovered . | . . . . . . . Used . | . . . . . . . Hacking Detections 2 | . . . . . . 2 Full Trace Events 1 | . . . . . . 1 Feedback Events . | . . . . . . . Feedback Blocked . | . . . . . . . Robot Schematics Acquired . | . . . . . . . Robots Built . | . . . . . . . Authchips . | . . . . . . . Time . | . . . . . . . Total Robot Build Rating . | . . . . . . . Part Schematics Acquired . | . . . . . . . Parts Built . | . . . . . . . Authchips . | . . . . . . . Time . | . . . . . . . Total Part Build Rating . | . . . . . . . Parts Repaired 1 | . . . . . . 1 Time 38 | . . . . . . 38 Parts Recycled . | . . . . . . . Recycled Matter . | . . . . . . . Retrieved Matter . | . . . . . . . Retrieved Components . | . . . . . . . Parts Scanalyzed . | . . . . . . . Part Schematics Acquired . | . . . . . . . Parts Damaged . | . . . . . . . Bothacking | -11 -10 -9 -9 -9 -8 -8 ------------ Run | Yrd Mat Mat Min Exi Min Mat Used RIF Installer . | . . . . . . . Robots Hacked . | . . . . . . . Non-combat . | . . . . . . . Combat . | . . . . . . . Robot Hacks Applied . | . . . . . . . Relay Couplers Released . | . . . . . . . Fabnet Peak Effective % . | . . . . . . . Robots Rewired . | . . . . . . . Allies Hacked . | . . . . . . . Hacks Repelled . | . . . . . . . Allies | -11 -10 -9 -9 -9 -8 -8 -------- Run | Yrd Mat Mat Min Exi Min Mat Total Allies . | . . . . . . . Largest Group . | . . . . . . . Highest-Rated Group . | . . . . . . . Highest-Rated Ally . | . . . . . . . Total Orders . | . . . . . . . Ally Attacks . | . . . . . . . Total Damage . | . . . . . . . Kills . | . . . . . . . Allies Corrupted . | . . . . . . . Allies Melted . | . . . . . . . Intel | -11 -10 -9 -9 -9 -8 -8 ------- Run | Yrd Mat Mat Min Exi Min Mat Robot Analysis Total . | . . . . . . . Derelict Logs Recovered 1 | . . . 1 . . . Drone Launches . | . . . . . . . Drone Recoveries . | . . . . . . . Exploration | -11 -10 -9 -9 -9 -8 -8 ------------- Run | Yrd Mat Mat Min Exi Min Mat Turns Passed 3865 | 258 101 209 853 471 1233 740 Spaces Moved 1657 | 54 85 126 410 248 534 200 Core 27 | 15 . 3 . . . 9 Treads . | . . . . . . . Legs 1630 | 39 85 123 410 248 534 191 Wheels . | . . . . . . . Hover . | . . . . . . . Flight . | . . . . . . . Fastest Speed 50 | 50 120 120 190 190 190 190 Average Speed 185 | 100 120 135 190 190 190 236 Slowest Speed 450 | 120 120 200 260 190 190 450 Overloaded Moves . | . . . . . . . Propulsion Burnouts . | . . . . . . . Robots Hopped . | . . . . . . . Cave-ins Triggered . | . . . . . . . Exploration Rate (%) 42 | 5 26 11 83 63 91 18 Regions Visited 6 Branch Regions 3 Pre-discovered Areas . | . . . . . . . Known Exits Taken . | . . . . . . . Unknown Exits Taken 6 | 1 1 1 1 1 1 . Scrap Searched 3 | . . . 1 . 2 . Spaces Dug . | . . . . . . . Terrain Destroyed 114 | . . . . . 104 10 Melee . | . . . . . . . Projectile 15 | . . . . . 5 10 AOE 99 | . . . . . 99 . Terrain Rammed . | . . . . . . . Walls Destroyed . | . . . . . . . Machines Disabled . | . . . . . . . Actions | -11 -10 -9 -9 -9 -8 -8 --------- Run | Yrd Mat Mat Min Exi Min Mat Total 2262 | 257 84 162 444 249 707 359 Wait 385 | 191 . . 6 . 133 55 Move 1651 | 53 84 125 409 247 533 200 Hop . | . . . . . . . Pick Up 46 | 5 . 22 2 1 4 12 Fast Attach 7 | 2 . 1 3 . . 1 Attach 32 | 5 . 6 1 . 4 16 Detach . | . . . . . . . Swap 1 | . . 1 . . . . Drop 16 | 1 . 5 5 1 1 3 Fire 97 | . . 2 17 . 32 46 Melee . | . . . . . . . Ram 2 | . . . . . . 2 Kick 25 | . . . 1 . . 24 Crush . | . . . . . . . Escape Stasis . | . . . . . . . Rewire . | . . . . . . . Trap . | . . . . . . . Miscellaneous . | . . . . . . . Route ------- -11/Scrapyard -10/Materials -9/Materials -9/Mines (discovered 3 exits: *Mat x2 / *Exi) -9/Exiles -8/Mines -8/Materials History --------- Turn | Location | Event 10 | -11/Scrapyard | Discovered new exit (range 16) 259 | -11/Scrapyard | Entered Materials 317 | -10/Materials | Build established: Mutant 339 | -10/Materials | Discovered new exit (range 4) 360 | -10/Materials | Entered another Materials area 360 | -9/Materials | Evolved 2 slots: Utility x1, Weapon x1 488 | -9/Materials | Discovered new exit (range 16) 569 | -9/Materials | Entered Mines 588 | -9/Mines | Met a Derelict bent on vengeance 740 | -9/Mines | Discovered new exit (range 15) 830 | -9/Mines | Build established: Gunner 905 | -9/Mines | Discovered new exit (range 12) 1213 | -9/Mines | Met a Derelict who couldn't figure out how to use a Trap Extractor 1414 | -9/Mines | Deemed a non-threat by the Exiles lab entrance 1414 | -9/Mines | Discovered new exit (range 5) 1422 | -9/Mines | Entered Exiles 1468 | -9/Exiles | Met 8R-AWN 1502 | -9/Exiles | Met EX-HEX 1626 | -9/Exiles | Met EX-BIN 1652 | -9/Exiles | Aligned with FarCom system 1654 | -9/Exiles | Given EX-Vault access code 1698 | -9/Exiles | Opened EX-Vault 1710 | -9/Exiles | Found Prototype Device 1751 | -9/Exiles | Warned to stay clear of 0b10 Research branches 1776 | -9/Exiles | Exiles lab attacked by MAIN.C 1870 | -9/Exiles | Discovered new exit (range 12) 1893 | -9/Exiles | Left Exiles lab with Cloak of Protection 1893 | -9/Exiles | Entered Mines 1950 | -8/Mines | Lost 3 parts (2p1n) 2633 | -8/Mines | Build established: Bomber 3116 | -8/Mines | Discovered new exit (range 6) 3126 | -8/Mines | Entered Materials 3126 | -8/Materials | Evolved 2 slots: Power x1, Utility x1 3127 | -8/Materials | Identified Cloak of Protection 3187 | -8/Materials | Garrison activated, responded to threat 3551 | -8/Materials | Repaired Imp. Heat Sink 3668 | -8/Materials | Lost 3 parts (1p2w) 3794 | -8/Materials | System corruption reached 10% 3800 | -8/Materials | Core integrity fell below 50% 3862 | -8/Materials | Core integrity fell below 20% 3866 | -8/Materials | Destroyed by G-47 Trooper with Particle Gun Last Messages --------------- Acquired Welding Torch. K-01 Serf collects debris. 74G5Q0N#% Welding Torch destroyed. Kicked G-50 Soldier out of the way. K-01 Serf collects debris. Kicked G-50 Soldier. Kicked G-50 Soldier out of the way. Kicked G-50 Soldier. Kicked G-50 Soldier out of the way. Kicked G-50 Soldier. Titanium Leg destroyed. Critical hit (Burn: +37). System corrupted: Matter fused (-8). Acquired 5 matter. Slammed into G-50 Soldier. Destabilizing: System corrupted (+2). Slammed into G-50 Soldier. Map ----- +----------------------------------------------------+ | ?????????????????????????????????????????????????? | | ?????????????????????????????????????????????????? | | ??????????????????????????#??????????????????????? | | ???????????????????????? #??????????????????????? | | ??????????????????????? +??????????????????????? | | ??????????????????????? #??????????????????????? | | ??????????????????????? #??????????????????????? | | ??????????????????????? #??????????????????????? | | ??????????????????????? #??????????????????????? | | ??????????????????????# #??????????????????????? | | ??????????????????????# #??????????????????????? | | ??????????????????????# +??????????????????????? | | ??????????????????????# u#??????????????????????? | | ??????????????????????# #??????????????????????? | | ????????????????? ??## ##?????????????????????? | | ???########+######/### #####?????????????????? | | ?? # #?????????????????? | | ?? ! ! # #?????????????????? | | ?? # #?????????????????? | | ?? ########### g # #?????????????????? | | ?????????????????????##g ## #??????###########? | | ??????????????????????# k##%% #??????# #? | | ??????????????????????# % ##=%%######## #? | | ??????????????????????#% ###;### = # #? | | ??????????????????????# r %= # #? | | ??????????????????????# g@ % %! ; """ """#? | | ??????????????????????# %% % # """ R"#? | | ??????????????????????## ######## w # """ """#? | | ???????????????????????# ###???#### ### #? | | ???????????????????????# #????????# #?###########? | | ???????????????????????# #????????# #????????????? | | ???????????????????????# #????????# #????????????? | | ???????????????????????# #????????# ????????????? | | ???????????????????????# #????????###????????????? | | ???????????????????????# #???????????????????????? | | ???????????????????????# #???????????????????????? | | ???????????????????????# #???????????????????????? | | ???????????????????????# #???????????????????????? | | ???????????????????????# #???????????????????????? | | ???????????????????????#+#######?????????????????? | | ???????????????????????# #?????????????????? | | ?????????????????????### ! #?????????????????? | | ?????????????????????#"" #?????????????????? | | ?????????????????????#"" #?????????????????? | | ?????????????????????#"T #?????????????????? | | ?????????????????????#"" #?????????????????? | | ?????????????????????#"" #?????????????????? | | ?????????????????????### #?????????????????? | | ????????????????######## #?????????????????? | | ????????????????#[ ==# #?????????????????? | +----------------------------------------------------+ Best States ------------- Heat Dissipation 45 Energy Generation 23 Energy Capacity 220 Matter Stores 300 Matter Capacity 300 Sight Range 16 Terrain Scan Range 14 Terrain Scan Density 10 Armor Coverage 225 Resistance: KI 30 Evasion (%) 55 Targeting Accuracy 16 Item Schematics ----------------- None Robot Schematics ------------------ None Fabricated ------------ Nothing Alien Tech Used ----------------- None Achievements -------------- None Challenges ------------ None Game ------ Seed BurstGhostDesublimator Manual? 0 Play Time 00:28:34 Cumulative 12.8 hours Start 2024.04.02 @ 21:26:08 End 2024.04.04 @ 15:53:46 Sessions 3 Manual Loads 0 Difficulty Rogue Special Mode None Game No. 25 Rogue 25 Adventurer 0 Explorer 0 Win Type - Total 0 Types 0/0/0/0/0/0/0/0/0 Lore% 18 Gallery% 21 Achievement% 21 Wizard Run 0 Options --------- Layout 1 ASCII 0 Keyboard 0 Movement Mouse Keybinds 0 Fullscreen 1 Font 24/Smallcaps Map View 50x35 Zoom Use 0% Tactical HUD 0 Map Filters NONE Filters NONE Steam 1 RUN: 843c9096-e589-4a35-bf2d-23c81979b50e